fUSD/lending_fUSD_20251212
["ID","MTS","AMOUNT","RATE_DAILY","PERIOD"]
[398319252,1765536633651,-500.0,0.00038154,30]
[398319254,1765536633661,-500.0,0.00038154,30]
[398319255,1765536633671,-446.096,0.00038155,2]
[398319256,1765536633681,-10110.7584,0.00038155,2]
[398319257,1765536633692,-540.78170457,0.00038156,2]
[398319258,1765536633701,-159.67108242,0.00038156,27]
[398319259,1765536633712,-1000.0,0.00038165,30]
[398319260,1765536633728,-1000.0,0.00038165,90]
[398319261,1765536633738,-1000.0,0.00038165,90]
[398319262,1765536633748,-1000.0,0.00038165,90]
[398319263,1765536633758,-1000.0,0.00038165,90]
[398319264,1765536633770,-1000.0,0.00038165,90]
[398319265,1765536633780,-1000.0,0.00038165,90]
[398319266,1765536633791,-1000.0,0.00038165,90]
[398319267,1765536633802,-500.0,0.00038187,120]
[398319268,1765536633812,-525.84,0.00038187,120]
[398319269,1765536633825,-500.0,0.00038187,30]
[398319270,1765536633835,-540.78170452,0.00038198,2]
[398319271,1765536633847,-586.8,0.00038198,30]
[398319272,1765536633858,-3626.08471678,0.000382,120]
[398319273,1765536633869,-11026.51618793,0.000382,2]
[398319274,1765536633879,-540.78170452,0.00038239,2]
[398319275,1765536633889,-500.0,0.00038255,30]
[398319276,1765536633899,-500.0,0.00038255,2]
[398319277,1765536633909,-500.0,0.00038255,30]
[398319278,1765536633919,-200.0,0.00038255,60]
[398319279,1765536633930,-600.0,0.00038256,30]
[398319280,1765536633940,-17511.6974,0.00038256,2]
[398319281,1765536633951,-501718.83165313,0.00038256,2]
[398319282,1765536633964,-20767.26317205,0.00038256,2]
[398319283,1765536633976,-11124.21482421,0.00038256,2]
[398319284,1765536633988,-38715.53322066,0.00038256,2]
[398319285,1765536638113,-180.42313304,0.00038256,2]
[398319286,1765536638123,-1519.72704875,0.00038256,2]
[398319287,1765536638133,-361.15299198,0.00038256,2]
[398319288,1765536638142,-540.78170452,0.00038281,2]
[398319289,1765536638152,-150.0,0.00038291,2]
[398319290,1765536638163,-150.0,0.00038291,2]
[398319291,1765536638173,-6405.0,0.00038291,2]
[398319292,1765536638182,-150.0,0.00038291,2]
[398319293,1765536638192,-157.05444941,0.00038291,2]
[398319294,1765536638202,-150.0,0.00038291,2]
[398319295,1765536638212,-150.0,0.00038291,2]
[398319296,1765536638222,-9.91604199,0.00038291,2]
[398319297,1765536638235,-190.08395801,0.00038291,2]
[398319298,1765536638244,-310.70175434,0.00038291,2]
[398319299,1765536638255,-189.29824566,0.00038291,2]
[398319300,1765536638265,-175.37906487,0.00038291,2]
[398319302,1765536638274,-150.0,0.00038291,2]
[398319304,1765536638283,-150.0,0.00038291,2]
[398319306,1765536638292,-500.0,0.00038291,2]
[398319308,1765536638301,-150.0,0.00038291,2]
[398319309,1765536638310,-2000.0,0.00038314,120]
[398319311,1765536638320,-540.78170452,0.00038322,2]
[398319313,1765536638330,-150.0,0.00038333,2]
[398319315,1765536638339,-168.34383784,0.00038346,2]
[398319317,1765536638348,-168.34383784,0.00038346,2]
[398319318,1765536638358,-249.01745233,0.00038355,120]
[398319320,1765536638368,-166.22386373,0.00038355,30]
[398319322,1765536638378,-500.0,0.00038355,30]
[398319324,1765536638389,-533.88981492,0.00038355,30]
[398319326,1765536638398,-1000.0,0.00038355,30]
[398319328,1765536638408,-500.0,0.00038355,30]
[398319330,1765536638418,-500.0,0.00038355,30]
[398319332,1765536638427,-1000.0,0.00038355,30]
[398319333,1765536638436,-1000.0,0.00038355,30]
[398319335,1765536638449,-500.0,0.00038355,30]
[398319337,1765536638458,-500.0,0.00038355,30]
[398319338,1765536638468,-1000.0,0.00038355,30]
[398319340,1765536638477,-1000.0,0.00038355,30]
[398319342,1765536638486,-500.0,0.00038355,30]
[398319344,1765536638496,-500.0,0.00038355,30]
[398319346,1765536638506,-1000.0,0.00038355,30]
[398319348,1765536638515,-500.0,0.00038355,30]
[398319350,1765536638525,-1000.0,0.00038355,30]
[398319352,1765536638534,-500.0,0.00038355,30]
[398319354,1765536638544,-1000.0,0.00038355,30]
[398319357,1765536638554,-500.0,0.00038355,30]
[398319358,1765536638564,-1000.0,0.00038355,30]
[398319360,1765536638574,-1000.0,0.00038355,30]
[398319362,1765536638585,-1000.0,0.00038355,30]
[398319364,1765536638595,-500.0,0.00038355,30]
[398319366,1765536638604,-1000.0,0.00038355,30]
[398319368,1765536638614,-500.0,0.00038355,30]
[398319370,1765536638624,-644.79446246,0.00038355,30]
[398319372,1765536638633,-1000.0,0.00038355,30]
[398319374,1765536638643,-500.0,0.00038355,30]
[398319376,1765536638652,-1000.0,0.00038355,30]
[398319378,1765536638661,-500.0,0.00038355,30]
[398319380,1765536638671,-1000.0,0.00038355,30]
[398319382,1765536638680,-1000.0,0.00038355,30]
[398319384,1765536638689,-500.0,0.00038355,30]
[398319386,1765536638699,-500.0,0.00038355,30]
[398319388,1765536638708,-1000.0,0.00038355,30]
[398319390,1765536638718,-500.0,0.00038355,30]
[398319392,1765536638731,-1000.0,0.00038355,30]
[398319394,1765536638740,-509.87467472,0.00038355,30]
[398319396,1765536638750,-500.0,0.00038355,30]
[398319398,1765536638761,-1000.0,0.00038355,30]
[398319400,1765536638770,-500.0,0.00038355,30]
[398319402,1765536638780,-1000.0,0.00038355,30]
[398319404,1765536638790,-500.0,0.00038355,30]
[398319405,1765536638800,-1000.0,0.00038355,30]
[398319406,1765536638809,-500.0,0.00038355,30]
[398319407,1765536638819,-1000.0,0.00038355,30]
[398319408,1765536638828,-500.0,0.00038355,30]
[398319409,1765536638837,-1000.0,0.00038355,30]
[398319410,1765536638847,-500.0,0.00038355,30]
[398319411,1765536638856,-578.20924308,0.00038355,30]
[398319412,1765536638866,-500.0,0.00038355,30]
[398319413,1765536638876,-1000.0,0.00038355,30]
[398319414,1765536638886,-500.0,0.00038355,30]
[398319415,1765536638895,-151.0,0.00038355,30]
[398319416,1765536638905,-500.0,0.00038355,30]
[398319417,1765536638915,-1041.77501142,0.00038355,30]
[398319418,1765536638924,-151.0,0.00038355,30]
[398319419,1765536638934,-509.2571872,0.00038355,30]
[398319420,1765536638943,-200.0,0.00038355,30]
[398319421,1765536638953,-517.54313695,0.00038355,30]
[398319422,1765536638963,-151.0,0.00038355,30]
[398319423,1765536638972,-151.0,0.00038355,30]
[398319424,1765536638982,-520.0,0.00038355,30]
[398319425,1765536638991,-151.0,0.00038355,30]
[398319426,1765536639002,-213.51453799,0.00038355,30]
[398319427,1765536639012,-151.0,0.00038355,30]
[398319428,1765536639024,-1000.0,0.00038355,30]
[398319429,1765536639034,-151.0,0.00038355,30]
[398319430,1765536639044,-151.0,0.00038355,30]
[398319431,1765536639054,-940.75392447,0.00038355,30]
[398319453,1765536640308,-59.24607553,0.00038355,30]
[398319454,1765536640318,-151.0,0.00038355,30]
[398319455,1765536640327,-151.0,0.00038355,30]
[398319456,1765536640336,-1000.0,0.00038355,30]
[398319457,1765536640346,-151.0,0.00038355,30]
[398319458,1765536640356,-151.0,0.00038355,30]
[398319459,1765536640365,-1000.0,0.00038355,30]
[398319460,1765536640374,-151.0,0.00038355,30]
[398319461,1765536640384,-151.0,0.00038355,30]
[398319462,1765536640393,-1000.0,0.00038355,30]
[398319463,1765536640402,-151.0,0.00038355,30]
[398319464,1765536640412,-1000.0,0.00038355,30]
[398319465,1765536640421,-151.0,0.00038355,30]
[398319466,1765536640430,-151.0,0.00038355,30]
[398319467,1765536640439,-1000.0,0.00038355,30]
[398319468,1765536640449,-151.0,0.00038355,30]
[398319469,1765536640458,-1000.0,0.00038355,30]
[398319470,1765536640467,-158.60499297,0.00038355,30]
[398319471,1765536640477,-1000.0,0.00038355,30]
[398319472,1765536640486,-200.0,0.00038355,30]
[398319473,1765536640495,-500.0,0.00038355,30]
[398319474,1765536640505,-1000.0,0.00038355,30]
[398319475,1765536640514,-500.0,0.00038355,30]
[398319477,1765536640523,-1000.0,0.00038355,30]
[398319478,1765536640533,-500.0,0.00038355,30]
[398319480,1765536640543,-1000.0,0.00038355,30]
[398319482,1765536640553,-500.0,0.00038355,30]
[398319484,1765536640563,-1000.0,0.00038355,30]
[398319486,1765536640572,-500.0,0.00038355,30]
[398319488,1765536640581,-500.0,0.00038355,30]
[398319490,1765536640591,-500.0,0.00038355,30]
[398319492,1765536640600,-151.0,0.00038355,30]
[398319494,1765536640609,-500.0,0.00038355,30]
[398319496,1765536640619,-500.0,0.00038355,30]
[398319498,1765536640628,-500.0,0.00038355,30]
[398319500,1765536640636,-500.0,0.00038355,30]
[398319502,1765536640646,-500.0,0.00038355,30]
[398319504,1765536640656,-500.0,0.00038355,30]
[398319506,1765536640671,-151.0,0.00038355,30]
[398319508,1765536640680,-500.0,0.00038355,30]
[398319510,1765536640689,-642.94,0.00038355,30]
[398319512,1765536640698,-1000.0,0.00038355,2]
[398319514,1765536640707,-1000.0,0.00038355,3]
[398319516,1765536640718,-1000.0,0.00038355,3]
[398319518,1765536640729,-1000.0,0.00038355,3]
[398319520,1765536640739,-430.32,0.00038355,14]
[398319522,1765536640748,-153.0,0.00038356,5]
[398319524,1765536640759,-4930.29589445,0.00038356,50]
[398319527,1765536640768,-16434.31964817,0.00038356,2]
[398319530,1765536640777,-11504.02375371,0.00038356,4]
[398319532,1765536640787,-233.28723287,0.00038356,30]
[398319534,1765536640797,-500.0,0.00038356,30]
[398319536,1765536640807,-500.0,0.00038356,30]
[398319538,1765536640815,-500.0,0.00038356,30]
[398319540,1765536640825,-500.0,0.00038356,30]
[398319542,1765536640834,-500.0,0.00038356,30]
[398319544,1765536640844,-500.0,0.00038356,30]
[398319546,1765536640853,-1196.03,0.00038356,30]
[398319548,1765536640862,-617.95,0.00038356,30]
[398319550,1765536640872,-548.66,0.00038356,30]
[398319552,1765536640881,-596.29314617,0.00038356,14]
[398319554,1765536640890,-500.0,0.00038356,30]
[398319556,1765536640900,-500.0,0.00038356,30]
[398319558,1765536640909,-500.0,0.00038356,30]
[398319560,1765536640918,-500.0,0.00038356,30]
[398319562,1765536640928,-500.0,0.00038356,30]
[398319564,1765536640938,-500.0,0.00038356,30]
[398319566,1765536640947,-678.18,0.00038356,30]
[398319568,1765536640956,-500.0,0.00038356,30]
[398319570,1765536640966,-500.0,0.00038356,30]
[398319572,1765536640976,-500.0,0.00038356,30]
[398319574,1765536640986,-500.0,0.00038356,30]
[398319576,1765536640995,-500.0,0.00038356,30]
[398319578,1765536641005,-585.26,0.00038356,30]
[398319580,1765536641015,-500.0,0.00038356,30]
[398319582,1765536641024,-500.0,0.00038356,30]
[398319584,1765536641033,-500.0,0.00038356,30]
[398319586,1765536641042,-500.0,0.00038356,30]
[398319588,1765536641051,-500.0,0.00038356,30]
[398319590,1765536641060,-500.0,0.00038356,30]
[398319592,1765536641071,-500.0,0.00038356,30]
[398319594,1765536641080,-500.0,0.00038356,30]
[398319596,1765536641089,-672.38,0.00038356,30]
[398319598,1765536641098,-500.0,0.00038356,30]
[398319600,1765536641107,-542.28,0.00038356,30]
[398319602,1765536641117,-500.0,0.00038356,30]
[398319604,1765536641126,-500.0,0.00038356,30]
[398319606,1765536641136,-500.0,0.00038356,30]
[398319608,1765536641145,-500.0,0.00038356,30]
[398319609,1765536641155,-500.0,0.00038356,30]
[398319611,1765536641164,-500.0,0.00038356,30]
[398319612,1765536641174,-755.36,0.00038356,30]
[398319613,1765536641183,-500.0,0.00038356,30]
[398319614,1765536641193,-1228.59,0.00038356,30]
[398319615,1765536641204,-500.0,0.00038356,30]
[398319616,1765536641213,-500.0,0.00038356,30]
[398319617,1765536641223,-1439.79,0.00038356,30]
[398319618,1765536641232,-500.0,0.00038356,30]
[398319619,1765536641241,-500.0,0.00038356,30]
[398319620,1765536641251,-500.0,0.00038356,30]
[398319621,1765536641260,-864.07,0.00038356,30]
[398319622,1765536641270,-500.0,0.00038356,30]
[398319623,1765536641279,-500.0,0.00038356,30]
[398319624,1765536641289,-509.56181263,0.00038356,30]
[398319625,1765536641298,-500.0,0.00038356,30]
[398319626,1765536641307,-500.0,0.00038356,30]
[398319627,1765536641317,-500.0,0.00038356,30]
[398319628,1765536641326,-500.0,0.00038356,30]
[398319629,1765536641336,-500.0,0.00038356,30]
[398319630,1765536641346,-500.0,0.00038356,30]
[398319631,1765536641355,-181.19708098,0.00038356,30]
[398319632,1765536641365,-500.0,0.00038356,30]
[398319633,1765536641375,-573.95,0.00038356,30]
[398319634,1765536641384,-500.0,0.00038356,30]
[398319635,1765536641393,-500.0,0.00038356,30]
[398319636,1765536641403,-500.0,0.00038356,30]
[398319637,1765536641412,-500.0,0.00038356,30]
[398319638,1765536641421,-533.54,0.00038356,30]
[398319639,1765536641431,-938.76,0.00038356,30]
[398319640,1765536641441,-500.0,0.00038356,30]
[398319641,1765536641450,-500.0,0.00038356,30]
[398319642,1765536641460,-500.0,0.00038356,30]
[398319643,1765536641469,-500.0,0.00038356,30]
[398319644,1765536641479,-500.0,0.00038356,30]
[398319645,1765536641488,-500.0,0.00038356,30]
[398319646,1765536641498,-500.0,0.00038356,30]
[398319647,1765536641507,-501.13289456,0.00038356,30]
[398319648,1765536641516,-620.08,0.00038356,30]
[398319649,1765536641525,-775.57,0.00038356,30]
[398319650,1765536641534,-500.0,0.00038356,30]
[398319651,1765536641543,-500.0,0.00038356,30]
[398319652,1765536641553,-500.0,0.00038356,30]
[398319653,1765536641562,-500.0,0.00038356,30]
[398319654,1765536641572,-255.03989453,0.00038356,30]
[398319655,1765536641582,-500.0,0.00038356,30]
[398319656,1765536641592,-500.0,0.00038356,30]
[398319657,1765536641601,-501.55,0.00038356,30]
[398319658,1765536641610,-500.0,0.00038356,30]
[398319659,1765536641620,-500.0,0.00038356,30]
[398319660,1765536641629,-500.0,0.00038356,30]
[398319661,1765536641638,-500.0,0.00038356,14]
[398319662,1765536641647,-500.0,0.00038356,30]
[398319663,1765536641657,-500.0,0.00038356,30]
[398319664,1765536641666,-386.01356683,0.00038356,30]
[398319665,1765536641675,-500.0,0.00038356,30]
[398319666,1765536641684,-755.67,0.00038356,30]
[398319667,1765536641693,-500.0,0.00038356,30]
[398319668,1765536641703,-500.0,0.00038356,30]
[398319669,1765536641712,-500.0,0.00038356,30]
[398319670,1765536641725,-503.01,0.00038356,30]
[398319671,1765536641734,-500.0,0.00038356,30]
[398319672,1765536641744,-500.0,0.00038356,30]
[398319673,1765536641753,-500.0,0.00038356,30]
[398319674,1765536641763,-500.0,0.00038356,30]
[398319675,1765536641772,-500.0,0.00038356,14]
[398319676,1765536641782,-500.0,0.00038356,30]
[398319677,1765536641791,-500.0,0.00038356,30]
[398319678,1765536641802,-595.47,0.00038356,30]
[398319679,1765536641812,-500.0,0.00038356,30]
[398319680,1765536641821,-517.36,0.00038356,30]
[398319681,1765536641830,-500.0,0.00038356,30]
[398319682,1765536641840,-500.0,0.00038356,30]
[398319683,1765536641849,-500.0,0.00038356,30]
[398319684,1765536641858,-1197.34,0.00038356,30]
[398319685,1765536641867,-500.0,0.00038356,30]
[398319686,1765536641877,-500.0,0.00038356,30]
[398319687,1765536641887,-609.14,0.00038356,30]
[398319688,1765536641896,-500.0,0.00038356,30]
[398319689,1765536641905,-500.0,0.00038356,30]
[398319690,1765536641915,-897.9,0.00038356,30]
[398319691,1765536641925,-500.0,0.00038356,30]
[398319692,1765536641934,-375.72907622,0.00038356,30]
[398319693,1765536641943,-702.09,0.00038356,30]
[398319694,1765536641953,-500.0,0.00038356,30]
[398319695,1765536641962,-663.82,0.00038356,30]
[398319696,1765536641972,-500.0,0.00038356,30]
[398319697,1765536641982,-500.0,0.00038356,30]
[398319698,1765536641991,-504.96919825,0.00038356,30]
[398319699,1765536642000,-500.0,0.00038356,30]
[398319700,1765536642010,-500.0,0.00038356,30]
[398319701,1765536642019,-500.0,0.00038356,30]
[398319702,1765536642028,-500.0,0.00038356,30]
[398319703,1765536642037,-500.0,0.00038356,30]
[398319704,1765536642047,-500.0,0.00038356,30]
[398319705,1765536642056,-500.0,0.00038356,30]
[398319706,1765536642065,-740.86,0.00038356,30]
[398319707,1765536642075,-500.59477161,0.00038356,30]
[398319708,1765536642085,-500.0,0.00038356,30]
[398319709,1765536642095,-500.0,0.00038356,30]
[398319710,1765536642103,-1430.91,0.00038356,30]
[398319711,1765536642112,-500.0,0.00038356,30]
[398319712,1765536642122,-500.0,0.00038356,30]
[398319713,1765536642131,-500.0,0.00038356,30]
[398319714,1765536642140,-1100.71,0.00038356,11]
[398319715,1765536642149,-563.18,0.00038356,30]
[398319716,1765536642158,-1144.71,0.00038356,30]
[398319717,1765536642167,-758.29,0.00038356,30]
[398319718,1765536642176,-500.0,0.00038356,30]
[398319719,1765536642185,-500.0,0.00038356,30]
[398319720,1765536642195,-667.94,0.00038356,30]
[398319721,1765536642204,-500.0,0.00038356,30]
[398319722,1765536642213,-500.0,0.00038356,30]
[398319723,1765536642223,-500.0,0.00038356,30]
[398319724,1765536642232,-500.0,0.00038356,30]
[398319725,1765536642242,-1846.03,0.00038356,30]
[398319726,1765536642251,-500.0,0.00038356,30]
[398319727,1765536642260,-500.0,0.00038356,30]
[398319728,1765536642269,-500.0,0.00038356,30]
[398319729,1765536642278,-500.0,0.00038356,30]
[398319730,1765536642288,-500.0,0.00038356,30]
[398319731,1765536642297,-500.0,0.00038356,30]
[398319732,1765536642306,-500.0,0.00038356,14]
[398319733,1765536642315,-500.0,0.00038356,30]
[398319734,1765536642324,-500.0,0.00038356,30]
[398319735,1765536642333,-676.5,0.00038356,30]
[398319736,1765536642342,-500.0,0.00038356,30]
[398319737,1765536642351,-500.0,0.00038356,30]
[398319738,1765536642360,-500.0,0.00038356,30]
[398319739,1765536642370,-732.08,0.00038356,30]
[398319740,1765536642380,-724.94,0.00038356,30]
[398319741,1765536642389,-500.0,0.00038356,30]
[398319742,1765536642398,-500.0,0.00038356,30]
[398319743,1765536642407,-643.49,0.00038356,30]
[398319744,1765536642416,-500.0,0.00038356,30]
[398319745,1765536642425,-500.0,0.00038356,30]
[398319746,1765536642434,-1213.64,0.00038356,30]
[398319747,1765536642444,-500.88082653,0.00038356,30]
[398319748,1765536642453,-500.0,0.00038356,30]
[398319749,1765536642462,-500.0,0.00038356,30]
[398319750,1765536642472,-500.0,0.00038356,30]
[398319751,1765536642482,-607.07,0.00038356,30]
[398319752,1765536642491,-750.79,0.00038356,30]
[398319753,1765536642500,-500.0,0.00038356,30]
[398319754,1765536642510,-500.0,0.00038356,30]
[398319755,1765536642519,-565.7,0.00038356,30]
[398319756,1765536642529,-1215.39,0.00038356,30]
[398319757,1765536642538,-500.0,0.00038356,30]
[398319758,1765536642548,-500.0,0.00038356,30]
[398319759,1765536642557,-500.0,0.00038356,30]
[398319760,1765536642566,-500.0,0.00038356,30]
[398319761,1765536642576,-500.0,0.00038356,30]
[398319762,1765536642585,-848.58,0.00038356,30]
[398319763,1765536642595,-500.0,0.00038356,30]
[398319764,1765536642605,-344.16490988,0.00038356,30]
[398319765,1765536642614,-500.0,0.00038356,30]
[398319766,1765536642624,-500.0,0.00038356,30]
[398319767,1765536642633,-500.0,0.00038356,30]
[398319768,1765536642643,-557.79483617,0.00038356,30]
[398319769,1765536642652,-500.0,0.00038356,30]
[398319770,1765536642661,-500.0,0.00038356,30]
[398319772,1765536642671,-500.92792947,0.00038356,30]
[398319773,1765536642680,-500.0,0.00038356,30]
[398319774,1765536642689,-500.0,0.00038356,30]
[398319775,1765536642699,-500.0,0.00038356,30]
[398319776,1765536642708,-753.21,0.00038356,30]
[398319777,1765536642718,-500.0,0.00038356,30]
[398319778,1765536642731,-500.0,0.00038356,30]
[398319779,1765536642740,-500.0,0.00038356,30]
[398319780,1765536642750,-500.0,0.00038356,30]
[398319781,1765536642759,-45.40362495,0.00038356,30]
[398319784,1765536642855,-454.59637505,0.00038356,30]
[398319785,1765536642864,-482.79592478,0.00038356,30]
[398319786,1765536642875,-500.0,0.00038356,30]
[398319787,1765536642884,-500.0,0.00038356,30]
[398319788,1765536642893,-500.0,0.00038356,30]
[398319789,1765536642903,-500.0,0.00038356,30]
[398319790,1765536642912,-552.91,0.00038356,30]
[398319791,1765536642920,-500.0,0.00038356,30]
[398319792,1765536642930,-503.59656653,0.00038356,30]
[398319793,1765536642940,-500.0,0.00038356,30]
[398319794,1765536642949,-795.68,0.00038356,30]
[398319795,1765536642958,-255.65876738,0.00038356,30]
[398319796,1765536643036,-244.34123262,0.00038356,30]
[398319797,1765536643045,-500.0,0.00038356,30]
[398319798,1765536643054,-500.0,0.00038356,30]
[398319799,1765536643064,-507.63068868,0.00038356,30]
[398319800,1765536643074,-500.0,0.00038356,30]
[398319801,1765536643083,-500.0,0.00038356,30]
[398319802,1765536643093,-500.0,0.00038356,30]
[398319803,1765536643102,-500.0,0.00038356,30]
[398319804,1765536643112,-500.0,0.00038356,30]
[398319805,1765536643121,-322.2081787,0.00038356,30]
[398319806,1765536643144,-177.7918213,0.00038356,30]
[398319807,1765536643154,-500.0,0.00038356,30]
[398319808,1765536643164,-500.0,0.00038356,30]
[398319809,1765536643173,-45.4403687,0.00038356,30]
[398319810,1765536643269,-472.12675828,0.00035997,15]
[398319811,1765536643280,-99.62691444,0.00035997,7]
[398319812,1765536643305,-293.74081488,0.00035997,7]
[398319813,1765536643314,-454.5596313,0.00038356,30]
[398319814,1765536643323,-613.40332825,0.00038356,30]
[398319815,1765536643332,-500.0,0.00038356,30]
[398319816,1765536643342,-160.4177803,0.00038356,30]
[398319817,1765536643358,-339.5822197,0.00038356,30]
[398319818,1765536643368,-500.0,0.00038356,30]
[398319819,1765536643377,-500.0,0.00038356,30]
[398319820,1765536643387,-500.0,0.00038356,30]
[398319821,1765536643396,-408.76485085,0.00038356,30]
[398319822,1765536643405,-423.09316169,0.00038356,30]
[398319823,1765536643414,-692.67,0.00038356,30]
[398319824,1765536643423,-500.0,0.00038356,30]
[398319825,1765536643432,-745.98,0.00038356,30]
[398319826,1765536643444,-500.0,0.00038356,30]
[398319827,1765536643453,-500.0,0.00038356,30]
[398319828,1765536643462,-500.0,0.00038356,30]
[398319829,1765536643471,-500.0,0.00038356,30]
[398319830,1765536643481,-500.0,0.00038356,30]
[398319831,1765536643490,-714.2,0.00038356,30]
[398319832,1765536643499,-500.0,0.00038356,30]
[398319833,1765536643509,-500.0,0.00038356,30]
[398319834,1765536643518,-500.0,0.00038356,30]
[398319835,1765536643527,-500.0,0.00038356,30]
[398319836,1765536643537,-500.0,0.00038356,30]
[398319837,1765536643546,-500.0,0.00038356,30]
[398319838,1765536643555,-500.0,0.00038356,30]
[398319839,1765536643564,-990.89,0.00038356,30]
[398319840,1765536643574,-500.0,0.00038356,30]
[398319841,1765536643584,-500.0,0.00038356,30]
[398319842,1765536643593,-500.0,0.00038356,30]
[398319843,1765536643603,-1141.33,0.00038356,30]
[398319844,1765536643612,-500.0,0.00038356,30]
[398319845,1765536643622,-500.0,0.00038356,30]
[398319846,1765536643631,-500.0,0.00038356,30]
[398319847,1765536643641,-500.0,0.00038356,30]
[398319848,1765536643650,-500.0,0.00038356,30]
[398319849,1765536643662,-500.0,0.00038356,30]
[398319850,1765536643671,-500.0,0.00038356,30]
[398319851,1765536643681,-500.0,0.00038356,30]
[398319852,1765536643691,-500.0,0.00038356,30]
[398319853,1765536643700,-500.0,0.00038356,30]
[398319854,1765536643709,-500.0,0.00038356,30]
[398319855,1765536643719,-736.93,0.00038356,30]
[398319856,1765536643732,-500.0,0.00038356,30]
[398319857,1765536643742,-500.0,0.00038356,30]
[398319858,1765536643752,-500.0,0.00038356,30]
[398319859,1765536643765,-500.0,0.00038356,30]
[398319860,1765536643774,-500.0,0.00038356,30]
[398319861,1765536643783,-500.0,0.00038356,30]
[398319862,1765536643793,-1026.69,0.00038356,30]
[398319863,1765536643804,-500.0,0.00038356,30]
[398319864,1765536643814,-500.0,0.00038356,30]
[398319865,1765536643823,-866.2,0.00038356,30]
[398319866,1765536643832,-203.72418197,0.00038356,30]
[398319867,1765536643841,-500.0,0.00038356,30]
[398319868,1765536644125,-500.0,0.00038356,30]
[398319869,1765536644135,-709.46,0.00038356,30]
[398319870,1765536644144,-510.19,0.00038356,30]
[398319871,1765536644159,-500.0,0.00038356,30]
[398319872,1765536644178,-755.64,0.00038356,30]
[398319873,1765536644199,-500.0,0.00038356,30]
[398319874,1765536644217,-500.0,0.00038356,30]
[398319875,1765536644226,-1337.95,0.00038356,30]
[398319876,1765536644236,-500.0,0.00038356,30]
[398319877,1765536644245,-500.0,0.00038356,30]
[398319878,1765536644255,-3627.22,0.00038356,30]
[398319879,1765536644265,-500.0,0.00038356,30]
[398319880,1765536644274,-500.0,0.00038356,30]
[398319881,1765536644283,-750.49,0.00038356,30]
[398319882,1765536644293,-500.0,0.00038356,30]
[398319883,1765536644302,-500.0,0.00038356,30]
[398319884,1765536644311,-500.0,0.00038356,30]
[398319885,1765536644321,-500.0,0.00038356,30]
[398319886,1765536644330,-500.74037949,0.00038356,30]
[398319887,1765536644339,-856.96,0.00038356,30]
[398319888,1765536644349,-1759.45,0.00038356,30]
[398319889,1765536644359,-500.0,0.00038356,30]
[398319890,1765536644369,-524.23,0.00038356,30]
[398319891,1765536644379,-500.0,0.00038356,30]
[398319892,1765536644388,-500.0,0.00038356,30]
[398319893,1765536644398,-500.0,0.00038356,30]
[398319894,1765536644408,-500.0,0.00038356,30]